fUST/lending_fUST_20260529
["ID","MTS","AMOUNT","RATE_DAILY","PERIOD"]
[423275609,1780012241000,-500.0,9.592e-05,2]
[423275622,1780012241000,-500.0,9.592e-05,2]
[423275611,1780012241000,-500.0,9.592e-05,2]
[423275612,1780012241000,-500.0,9.592e-05,2]
[423275614,1780012241000,-500.0,9.592e-05,2]
[423275616,1780012241000,-500.0,9.592e-05,2]
[423275618,1780012241000,-500.0,9.592e-05,2]
[423275623,1780012241000,-500.0,9.592e-05,2]
[423275632,1780012241000,-500.0,9.592e-05,2]
[423275626,1780012241000,-500.0,9.592e-05,2]
[423275625,1780012241000,-500.0,9.592e-05,2]
[423275620,1780012241000,-500.0,9.592e-05,2]
[423275630,1780012241000,-500.0,9.592e-05,2]
[423275778,1780012242000,-367.79280704,9.866e-05,2]
[423275741,1780012242000,-500.0,9.866e-05,2]
[423275763,1780012242000,-500.0,9.866e-05,2]
[423275764,1780012242000,-500.0,9.866e-05,2]
[423275775,1780012242000,-500.0,9.866e-05,2]
[423275759,1780012242000,-500.0,9.866e-05,2]
[423275743,1780012242000,-500.0,9.866e-05,2]
[423275761,1780012242000,-362.22094425,9.866e-05,2]
[423275755,1780012242000,-500.0,9.866e-05,2]
[423275754,1780012242000,-500.0,9.866e-05,2]
[423275746,1780012242000,-500.0,9.866e-05,2]
[423275768,1780012242000,-470.52,9.866e-05,2]
[423275757,1780012242000,-500.0,9.866e-05,2]
[423275766,1780012242000,-500.0,9.866e-05,2]
[423275792,1780012242000,-500.0,9.866e-05,2]
[423275772,1780012242000,-310.65,9.866e-05,2]
[423275780,1780012242000,-500.0,9.866e-05,2]
[423275782,1780012242000,-500.0,9.866e-05,2]
[423275785,1780012242000,-500.0,9.866e-05,2]
[423275797,1780012242000,-500.0,9.866e-05,2]
[423275801,1780012242000,-17316.56187926,9.9e-05,2]
[423275799,1780012242000,-1121.4042086,9.869e-05,2]
[423275786,1780012242000,-430.3,9.866e-05,2]
[423275802,1780012242000,-161.53294221,9.969e-05,2]
[423275788,1780012242000,-500.0,9.866e-05,2]
[423275790,1780012242000,-500.0,9.866e-05,2]
[423275793,1780012242000,-500.0,9.866e-05,2]
[423275745,1780012242000,-379.86,9.866e-05,2]
[423275795,1780012242000,-500.0,9.866e-05,2]
[423275770,1780012242000,-501.95,9.866e-05,2]
[423275737,1780012242000,-500.0,9.866e-05,2]
[423275704,1780012242000,-500.0,9.865e-05,2]
[423275752,1780012242000,-500.0,9.866e-05,2]
[423275804,1780012242000,-290.46853668,9.969e-05,2]
[423275687,1780012242000,-292.91234293,9.865e-05,2]
[423275698,1780012242000,-226.72,9.865e-05,2]
[423275690,1780012242000,-500.0,9.865e-05,2]
[423275700,1780012242000,-500.0,9.865e-05,2]
[423275694,1780012242000,-500.0,9.865e-05,2]
[423275696,1780012242000,-164.83596564,9.865e-05,2]
[423275702,1780012242000,-500.0,9.865e-05,2]
[423275689,1780012242000,-500.0,9.865e-05,2]
[423275693,1780012242000,-217.6,9.865e-05,2]
[423275706,1780012242000,-500.0,9.865e-05,2]
[423275708,1780012242000,-450.3986698,9.865e-05,2]
[423275711,1780012242000,-577.01,9.865e-05,2]
[423275709,1780012242000,-500.0,9.865e-05,2]
[423275713,1780012242000,-500.0,9.865e-05,2]
[423275717,1780012242000,-166.14001727,9.865e-05,2]
[423275719,1780012242000,-283.27611127,9.865e-05,2]
[423275728,1780012242000,-311.61,9.866e-05,2]
[423275724,1780012242000,-500.0,9.866e-05,2]
[423275715,1780012242000,-255.65998273,9.865e-05,2]
[423275726,1780012242000,-500.0,9.866e-05,2]
[423275723,1780012242000,-500.0,9.866e-05,2]
[423275721,1780012242000,-500.0,9.866e-05,2]
[423275731,1780012242000,-500.0,9.866e-05,2]
[423275730,1780012242000,-500.0,9.866e-05,2]
[423275733,1780012242000,-500.0,9.866e-05,2]
[423275735,1780012242000,-500.0,9.866e-05,2]
[423275748,1780012242000,-500.0,9.866e-05,2]
[423275739,1780012242000,-500.0,9.866e-05,2]
[423275750,1780012242000,-500.0,9.866e-05,2]
[423275810,1780012242000,-314.37567727,0.00010138,2]
[423275826,1780012242000,-500.0,0.00010139,2]
[423275808,1780012242000,-154.42,0.00010138,2]
[423275883,1780012242000,-500.0,0.0001014,2]
[423275872,1780012242000,-500.0,0.0001014,2]
[423275881,1780012242000,-396.61,0.0001014,2]
[423275885,1780012242000,-500.0,0.0001014,2]
[423275887,1780012242000,-500.0,0.0001014,2]
[423275889,1780012242000,-500.0,0.0001014,2]
[423275890,1780012242000,-500.0,0.0001014,2]
[423275892,1780012242000,-597.2,0.0001014,2]
[423275896,1780012242000,-576.23,0.0001014,2]
[423275897,1780012242000,-400.6,0.0001014,2]
[423275907,1780012242000,-412.71023408,0.00010412,2]
[423275894,1780012242000,-500.0,0.0001014,2]
[423275899,1780012242000,-238.74,0.0001014,2]
[423275903,1780012242000,-253.27637168,0.00010374,2]
[423275909,1780012242000,-672.02,0.00010412,2]
[423275913,1780012242000,-500.0,0.00010412,2]
[423275911,1780012242000,-500.0,0.00010412,2]
[423275915,1780012242000,-500.0,0.00010412,2]
[423275917,1780012242000,-500.0,0.00010412,2]
[423275921,1780012242000,-500.0,0.00010413,2]
[423275919,1780012242000,-500.0,0.00010413,2]
[423275929,1780012242000,-500.0,0.00010413,2]
[423275931,1780012242000,-494.82,0.00010413,2]
[423275933,1780012242000,-500.0,0.00010413,2]
[423275923,1780012242000,-500.0,0.00010413,2]
[423275926,1780012242000,-500.0,0.00010413,2]
[423275924,1780012242000,-500.0,0.00010413,2]
[423275935,1780012242000,-245.05,0.00010413,2]
[423275806,1780012242000,-2220.9630244,0.00010039,2]
[423275871,1780012242000,-500.0,0.0001014,2]
[423275868,1780012242000,-500.0,0.0001014,2]
[423275901,1780012242000,-500.0,0.0001014,2]
[423275876,1780012242000,-389.88,0.0001014,2]
[423275878,1780012242000,-500.0,0.0001014,2]
[423275813,1780012242000,-500.0,0.00010138,2]
[423275815,1780012242000,-672.02,0.00010138,2]
[423275824,1780012242000,-514.99,0.00010139,2]
[423275821,1780012242000,-500.0,0.00010138,2]
[423275819,1780012242000,-500.0,0.00010138,2]
[423275823,1780012242000,-500.0,0.00010138,2]
[423275817,1780012242000,-500.0,0.00010138,2]
[423275937,1780012242000,-238.35004423,0.00010413,2]
[423275828,1780012242000,-500.0,0.00010139,2]
[423275836,1780012242000,-618.62,0.00010139,2]
[423275832,1780012242000,-500.0,0.00010139,2]
[423275830,1780012242000,-500.0,0.00010139,2]
[423275834,1780012242000,-274.65,0.00010139,2]
[423275838,1780012242000,-500.0,0.00010139,2]
[423275811,1780012242000,-580.22,0.00010138,2]
[423275849,1780012242000,-500.0,0.00010139,2]
[423275840,1780012242000,-500.0,0.00010139,2]
[423275862,1780012242000,-500.0,0.0001014,2]
[423275864,1780012242000,-195.31,0.0001014,2]
[423275859,1780012242000,-500.0,0.0001014,2]
[423275860,1780012242000,-500.0,0.0001014,2]
[423275857,1780012242000,-500.0,0.0001014,2]
[423275851,1780012242000,-500.0,0.00010139,2]
[423275866,1780012242000,-320.89,0.0001014,2]
[423275855,1780012242000,-500.0,0.0001014,2]
[423275853,1780012242000,-181.01,0.0001014,2]
[423275845,1780012242000,-500.0,0.00010139,2]
[423275843,1780012242000,-500.0,0.00010139,2]
[423275842,1780012242000,-500.0,0.00010139,2]
[423275847,1780012242000,-226.71451431,0.00010139,2]
[423276028,1780012243000,-151.0,0.000108,2]
[423276020,1780012243000,-292.4,0.00010688,2]
[423276030,1780012243000,-169.03510474,0.000108,2]
[423276034,1780012243000,-300.0,0.00010811,2]
[423275999,1780012243000,-500.0,0.00010688,2]
[423276033,1780012243000,-300.0,0.00010811,2]
[423276013,1780012243000,-500.0,0.00010688,2]
[423276015,1780012243000,-500.0,0.00010688,2]
[423276011,1780012243000,-500.0,0.00010688,2]
[423276007,1780012243000,-500.0,0.00010688,2]
[423276009,1780012243000,-500.0,0.00010688,2]
[423276022,1780012243000,-345.1,0.00010688,2]
[423276017,1780012243000,-500.0,0.00010688,2]
[423276018,1780012243000,-204.17,0.00010688,2]
[423276055,1780012243000,-176.95,0.00010958,2]
[423276024,1780012243000,-2220.96302437,0.00010754,2]
[423276043,1780012243000,-500.0,0.00010958,2]
[423276038,1780012243000,-300.0,0.00010811,2]
[423276036,1780012243000,-300.0,0.00010811,2]
[423276041,1780012243000,-300.0,0.00010811,2]
[423276045,1780012243000,-500.0,0.00010958,3]
[423276060,1780012243000,-500.0,0.0001096,2]
[423276047,1780012243000,-500.0,0.00010958,4]
[423276059,1780012243000,-500.0,0.0001096,2]
[423276057,1780012243000,-672.02,0.0001096,2]
[423276049,1780012243000,-500.0,0.00010958,5]
[423276051,1780012243000,-500.0,0.00010958,6]
[423276053,1780012243000,-500.0,0.00010958,7]
[423276001,1780012243000,-186.47,0.00010688,2]
[423276026,1780012243000,-138031.86379443,0.000108,2]
[423276005,1780012243000,-500.0,0.00010688,2]
[423275939,1780012243000,-500.0,0.00010413,2]
[423275995,1780012243000,-500.0,0.00010687,2]
[423275941,1780012243000,-500.0,0.00010414,2]
[423275943,1780012243000,-500.0,0.00010414,2]
[423275947,1780012243000,-500.0,0.00010414,2]
[423275945,1780012243000,-500.0,0.00010414,2]
[423275958,1780012243000,-500.0,0.00010414,2]
[423275956,1780012243000,-500.0,0.00010414,2]
[423275949,1780012243000,-528.84,0.00010414,2]
[423275960,1780012243000,-500.0,0.00010414,2]
[423275950,1780012243000,-500.0,0.00010414,2]
[423275952,1780012243000,-500.0,0.00010414,2]
[423275954,1780012243000,-500.0,0.00010414,2]
[423275963,1780012243000,-219.1427892,0.00010414,2]
[423275961,1780012243000,-500.0,0.00010414,2]
[423275965,1780012243000,-500.0,0.00010414,2]
[423276003,1780012243000,-500.0,0.00010688,2]
[423275978,1780012243000,-210.7683877,0.00010686,2]
[423275967,1780012243000,-193.94,0.00010414,2]
[423275976,1780012243000,-500.0,0.00010686,2]
[423275969,1780012243000,-500.0,0.00010414,2]
[423275973,1780012243000,-743.7352753,0.00010584,2]
[423275982,1780012243000,-500.0,0.00010686,2]
[423275971,1780012243000,-162.0,0.000105,2]
[423275975,1780012243000,-672.02,0.00010686,2]
[423275988,1780012243000,-500.0,0.00010687,2]
[423275984,1780012243000,-500.0,0.00010687,2]
[423275986,1780012243000,-500.0,0.00010687,2]
[423275990,1780012243000,-500.0,0.00010687,2]
[423275997,1780012243000,-500.0,0.00010687,2]
[423275992,1780012243000,-500.0,0.00010687,2]
[423275994,1780012243000,-500.0,0.00010687,2]
[423275980,1780012243000,-500.0,0.00010686,2]
[423276064,1780012243000,-177.34,0.0001096,2]
[423276062,1780012243000,-500.0,0.0001096,2]
[423276068,1780012243000,-500.0,0.00010961,2]
[423276138,1780012243000,-500.0,0.00011236,2]
[423276136,1780012243000,-500.0,0.00011236,2]
[423276140,1780012243000,-500.0,0.00011236,2]
[423276142,1780012243000,-500.0,0.00011236,2]
[423276146,1780012243000,-500.0,0.00011236,2]
[423276144,1780012243000,-500.0,0.00011236,2]
[423276148,1780012243000,-2220.96302437,0.0001147,2]
[423276158,1780012243000,-500.0,0.00011509,2]
[423276159,1780012243000,-500.0,0.00011509,2]
[423276161,1780012243000,-500.0,0.00011509,2]
[423276163,1780012243000,-500.0,0.00011509,2]
[423276166,1780012243000,-500.0,0.00011509,2]
[423276150,1780012243000,-672.02,0.00011508,2]
[423276152,1780012243000,-500.0,0.00011508,2]
[423276156,1780012243000,-500.0,0.00011508,2]
[423276153,1780012243000,-500.0,0.00011508,2]
[423276168,1780012243000,-500.0,0.0001151,2]
[423276169,1780012243000,-500.0,0.0001151,2]
[423276171,1780012243000,-500.0,0.0001151,2]
[423276173,1780012243000,-649.65468081,0.0001151,2]
[423276185,1780012243000,-500.0,0.00011782,2]
[423276176,1780012243000,-500.0,0.0001151,2]
[423276177,1780012243000,-500.0,0.0001151,2]
[423276187,1780012243000,-500.0,0.00011782,2]
[423276189,1780012243000,-401.3,0.00011783,2]
[423276180,1780012243000,-343.71423205,0.00011664,7]
[423276191,1780012243000,-536.5,0.00011783,2]
[423276183,1780012243000,-500.0,0.00011782,2]
[423276066,1780012243000,-500.0,0.00010961,2]
[423276134,1780012243000,-500.0,0.00011235,2]
[423276132,1780012243000,-500.0,0.00011235,2]
[423276182,1780012243000,-672.02,0.00011782,2]
[423276128,1780012243000,-500.0,0.00011235,2]
[423276130,1780012243000,-500.0,0.00011235,2]
[423276079,1780012243000,-515.84,0.00010961,2]
[423276081,1780012243000,-500.0,0.00010962,2]
[423276072,1780012243000,-500.0,0.00010961,2]
[423276074,1780012243000,-408.35,0.00010961,2]
[423276085,1780012243000,-500.0,0.00010962,2]
[423276083,1780012243000,-500.0,0.00010962,2]
[423276077,1780012243000,-500.0,0.00010961,2]
[423276075,1780012243000,-500.0,0.00010961,2]
[423276087,1780012243000,-346.27,0.00010962,2]
[423276091,1780012243000,-500.0,0.00010962,2]
[423276093,1780012243000,-328.20603544,0.00010962,2]
[423276089,1780012243000,-267.86,0.00010962,2]
[423276105,1780012243000,-688.57,0.00010986,2]
[423276107,1780012243000,-930.82,0.00010993,2]
[423276070,1780012243000,-500.0,0.00010961,2]
[423276109,1780012243000,-708.57,0.00010993,2]
[423276094,1780012243000,-500.0,0.00010962,2]
[423276124,1780012243000,-500.0,0.00011235,2]
[423276122,1780012243000,-500.0,0.00011234,2]
[423276120,1780012243000,-500.0,0.00011234,2]
[423276118,1780012243000,-500.0,0.00011234,2]
[423276113,1780012243000,-600.0,0.00011015,2]
[423276126,1780012243000,-372.93,0.00011235,2]
[423276116,1780012243000,-672.02,0.00011234,2]
[423276100,1780012243000,-193.12,0.00010971,2]
[423276102,1780012243000,-194.83,0.00010978,2]
[423276098,1780012243000,-178.12,0.00010965,2]
[423276096,1780012243000,-500.0,0.00010962,2]
[423276111,1780012243000,-651.11968186,0.00011,2]
[423276115,1780012243000,-229.14282136,0.00011016,7]
[423276275,1780012244000,-244.40879847,0.00012855,7]
[423276273,1780012244000,-5000.0,0.00012607,2]
[423276283,1780012244000,-2220.96302437,0.000129,2]
[423276271,1780012244000,-5000.0,0.00012607,2]
[423276270,1780012244000,-5000.0,0.00012607,2]
[423276254,1780012244000,-18104.90854922,0.000125,2]
[423276266,1780012244000,-5000.0,0.00012607,2]
[423276256,1780012244000,-151.0,0.000125,2]
[423276252,1780012244000,-11805.8013563,0.000125,2]
[423276250,1780012244000,-1835.0,0.00012451,2]
[423276287,1780012244000,-1009.00999667,0.00013,2]
[423276268,1780012244000,-5000.0,0.00012607,2]
[423276248,1780012244000,-2205.0,0.00012451,2]
[423276293,1780012244000,-672.02,0.00013152,2]
[423276285,1780012244000,-100683.59620958,0.00013,2]
[423276279,1780012244000,-500.0,0.00012879,2]
[423276281,1780012244000,-500.0,0.0001288,2]
[423276289,1780012244000,-1000.0,0.00013,2]
[423276291,1780012244000,-151.0,0.00013,2]
[423276298,1780012244000,-500.0,0.00013153,2]
[423276300,1780012244000,-244.40879847,0.00013233,14]
[423276306,1780012244000,-527.09,0.00013427,2]
[423276296,1780012244000,-457.63,0.00013153,2]
[423276308,1780012244000,-160.0,0.00013559,2]
[423276304,1780012244000,-672.02,0.00013426,2]
[423276302,1780012244000,-864.0,0.00013328,2]
[423276313,1780012244000,-767.06633829,0.00013559,2]
[423276263,1780012244000,-500.0,0.00012605,2]
[423276277,1780012244000,-672.02,0.00012878,2]
[423276264,1780012244000,-500.0,0.00012606,2]
[423276233,1780012244000,-720.0,0.00012116,2]
[423276261,1780012244000,-338.03,0.00012604,2]
[423276311,1780012244000,-160.0,0.00013559,2]
[423276197,1780012244000,-500.0,0.00011783,2]
[423276193,1780012244000,-500.0,0.00011783,2]
[423276199,1780012244000,-500.0,0.00011784,2]
[423276195,1780012244000,-500.0,0.00011783,2]
[423276205,1780012244000,-500.0,0.00011784,2]
[423276203,1780012244000,-500.0,0.00011784,2]
[423276207,1780012244000,-500.0,0.00011784,2]
[423276209,1780012244000,-344.46243596,0.00011799,2]
[423276201,1780012244000,-500.0,0.00011784,2]
[423276211,1780012244000,-174921.17568931,0.000118,5]
[423276213,1780012244000,-151.0,0.000118,2]
[423276215,1780012244000,-180.0,0.00011945,3]
[423276258,1780012244000,-244.40879847,0.00012603,2]
[423276219,1780012244000,-60834.30579593,0.00012,2]
[423276227,1780012244000,-500.0,0.00012056,2]
[423276235,1780012244000,-2220.96302437,0.00012185,2]
[423276237,1780012244000,-672.02,0.0001233,2]
[423276223,1780012244000,-672.02,0.00012056,2]
[423276225,1780012244000,-622.44,0.00012056,2]
[423276229,1780012244000,-500.0,0.00012057,2]
[423276231,1780012244000,-500.0,0.00012058,2]
[423276239,1780012244000,-500.0,0.0001233,2]
[423276246,1780012244000,-3830.0,0.00012451,2]
[423276242,1780012244000,-500.0,0.00012332,2]
[423276241,1780012244000,-500.0,0.00012331,2]
[423276244,1780012244000,-291.91175041,0.00012374,2]
[423276259,1780012244000,-672.02,0.00012604,2]
[423276221,1780012244000,-3011.0,0.00012,2]
[423276315,1780012244000,-160.0,0.00013559,2]
[423276341,1780012244000,-151.0,0.00013699,2]
[423276319,1780012244000,-180.6675683,0.00013581,2]
[423276365,1780012244000,-387.92,0.00013699,2]
[423276367,1780012244000,-387.92,0.00013699,2]
[423276363,1780012244000,-387.92,0.00013699,2]
[423276366,1780012244000,-387.92,0.00013699,2]
[423276368,1780012244000,-387.92,0.00013699,2]
[423276370,1780012244000,-387.92,0.00013699,2]
[423276369,1780012244000,-387.92,0.00013699,2]
[423276371,1780012244000,-1000.0,0.00013699,2]
[423276373,1780012244000,-672.02,0.000137,2]
[423276374,1780012244000,-1250.69938138,0.000138,2]
[423276375,1780012244000,-672.02,0.00013974,2]
[423276372,1780012244000,-1250.69938138,0.000137,2]
[423276378,1780012244000,-672.02,0.00014248,2]
[423276364,1780012244000,-387.92,0.00013699,2]
[423276377,1780012244000,-1250.69938138,0.000141,2]
[423276380,1780012244000,-330.54712914,0.00014374,2]
[423276376,1780012244000,-1250.69938138,0.00014,2]
[423276381,1780012244000,-325.7975323,0.00014397,2]
[423276383,1780012244000,-430.3196509,0.00014402,2]
[423276382,1780012244000,-1250.69938138,0.000144,2]
[423276384,1780012244000,-326.0859053,0.00014402,2]
[423276385,1780012244000,-1250.69938138,0.000145,2]
[423276387,1780012244000,-672.02,0.00014522,2]
[423276388,1780012244000,-355.44412564,0.00014661,2]
[423276386,1780012244000,-181.43446984,0.00014513,2]
[423276389,1780012244000,-1000.0,0.00014661,2]
[423276392,1780012244000,-1250.69938138,0.000148,2]
[423276391,1780012244000,-672.02,0.00014796,2]
[423276379,1780012244000,-1250.69938138,0.000143,2]
[423276362,1780012244000,-387.92,0.00013699,2]
[423276317,1780012244000,-160.0,0.00013559,2]
[423276359,1780012244000,-387.92,0.00013699,2]
[423276321,1780012244000,-151.0,0.00013581,2]
[423276323,1780012244000,-326.0859053,0.00013581,2]
[423276335,1780012244000,-151.0,0.00013699,2]
[423276333,1780012244000,-1250.69938138,0.000136,2]
[423276390,1780012244000,-1250.69938138,0.000147,2]
[423276339,1780012244000,-151.0,0.00013699,2]
[423276337,1780012244000,-151.0,0.00013699,2]
[423276325,1780012244000,-264.8940501,0.00013581,2]
[423276361,1780012244000,-387.92,0.00013699,2]
[423276327,1780012244000,-456.7807192,0.00013581,2]
[423276329,1780012244000,-326.0859053,0.00013581,2]
[423276342,1780012244000,-151.0,0.00013699,2]
[423276343,1780012244000,-261.4683255,0.00013699,2]
[423276344,1780012244000,-151.0,0.00013699,2]
[423276331,1780012244000,-326.1011568,0.00013581,2]
[423276345,1780012244000,-151.0,0.00013699,2]
[423276346,1780012244000,-151.0,0.00013699,2]
[423276358,1780012244000,-387.92,0.00013699,2]
[423276355,1780012244000,-387.92,0.00013699,2]
[423276357,1780012244000,-387.92,0.00013699,2]
[423276356,1780012244000,-387.92,0.00013699,2]
[423276353,1780012244000,-151.0,0.00013699,2]
[423276360,1780012244000,-387.92,0.00013699,2]
[423276350,1780012244000,-151.0,0.00013699,2]
[423276348,1780012244000,-151.0,0.00013699,2]
[423276349,1780012244000,-151.0,0.00013699,2]
[423276351,1780012244000,-151.0,0.00013699,2]
[423276352,1780012244000,-151.0,0.00013699,2]
[423276347,1780012244000,-151.0,0.00013699,2]
[423276354,1780012244000,-206.155481,0.00013699,2]
[423276432,1780012245000,-175.661506,0.00016438,2]
[423276435,1780012245000,-175.661506,0.00016438,2]
[423276438,1780012245000,-175.661506,0.00016438,2]
[423276433,1780012245000,-175.661506,0.00016438,2]
[423276434,1780012245000,-175.661506,0.00016438,2]
[423276428,1780012245000,-200.0,0.00016438,2]
[423276429,1780012245000,-175.661506,0.00016438,2]
[423276430,1780012245000,-175.661506,0.00016438,2]
[423276426,1780012245000,-539.24247779,0.000162,2]
[423276424,1780012245000,-1000.0,0.00016127,2]
[423276427,1780012245000,-369.18250787,0.00016374,2]
[423276431,1780012245000,-175.661506,0.00016438,2]
[423276439,1780012245000,-175.661506,0.00016438,2]
[423276455,1780012245000,-484.9,0.00016438,2]
[423276437,1780012245000,-175.661506,0.00016438,2]
[423276436,1780012245000,-175.661506,0.00016438,2]
[423276441,1780012245000,-175.661506,0.00016438,2]
[423276443,1780012245000,-175.661506,0.00016438,2]
[423276444,1780012245000,-175.661506,0.00016438,2]
[423276442,1780012245000,-175.661506,0.00016438,2]
[423276445,1780012245000,-175.661506,0.00016438,2]
[423276453,1780012245000,-484.9,0.00016438,2]
[423276446,1780012245000,-175.661506,0.00016438,2]
[423276457,1780012245000,-484.9,0.00016438,2]
[423276449,1780012245000,-484.9,0.00016438,2]
[423276450,1780012245000,-484.9,0.00016438,2]
[423276448,1780012245000,-175.661509,0.00016438,2]
[423276425,1780012245000,-244.0,0.00016127,2]
[423276440,1780012245000,-175.661506,0.00016438,2]
[423276421,1780012245000,-539.24247779,0.000159,2]
[423276406,1780012245000,-387.92,0.00015,2]
[423276423,1780012245000,-539.24247779,0.000161,2]
[423276451,1780012245000,-484.9,0.00016438,2]
[423276393,1780012245000,-362.86893967,0.00014818,2]
[423276395,1780012245000,-1014.28263668,0.00015,7]
[423276394,1780012245000,-1032.89808135,0.00015,2]
[423276396,1780012245000,-3300.65817523,0.00015,2]
[423276397,1780012245000,-152.95041088,0.00015,2]
[423276400,1780012245000,-131761.62607427,0.00015,2]
[423276403,1780012245000,-151.0,0.00015,2]
[423276399,1780012245000,-4062.29922733,0.00015,2]
[423276402,1780012245000,-151.0,0.00015,2]
[423276398,1780012245000,-513145.11142182,0.00015,2]
[423276401,1780012245000,-151.0,0.00015,2]
[423276405,1780012245000,-387.92,0.00015,2]
[423276422,1780012245000,-218.79333125,0.00016,2]
[423276404,1780012245000,-387.92,0.00015,2]
[423276409,1780012245000,-423.739968,0.00015068,2]
[423276408,1780012245000,-151.0,0.00015,2]
[423276418,1780012245000,-857.7268057,0.000158,2]
[423276414,1780012245000,-1835.0,0.00015451,2]
[423276410,1780012245000,-672.02,0.0001507,2]
[423276415,1780012245000,-4000.0,0.000155,2]
[423276417,1780012245000,-672.02,0.00015618,2]
[423276412,1780012245000,-3830.0,0.00015451,2]
[423276411,1780012245000,-672.02,0.00015344,2]
[423276413,1780012245000,-2205.0,0.00015451,2]
[423276416,1780012245000,-539.24247779,0.000156,2]
[423276419,1780012245000,-539.24247779,0.000158,2]
[423276420,1780012245000,-672.19,0.00015892,2]
[423276407,1780012245000,-387.92,0.00015,2]
[423276447,1780012245000,-175.661506,0.00016438,2]
[423276470,1780012245000,-484.9,0.00016438,2]
[423276459,1780012245000,-484.9,0.00016438,2]
[423276501,1780012245000,-151.0,0.00016438,2]
[423276497,1780012245000,-200.0,0.00016438,3]
[423276496,1780012245000,-200.0,0.00016438,3]
[423276498,1780012245000,-200.0,0.00016438,3]
[423276495,1780012245000,-200.0,0.00016438,3]
[423276499,1780012245000,-200.0,0.00016438,3]
[423276500,1780012245000,-153.726261,0.00016438,2]
[423276502,1780012245000,-151.0,0.00016438,2]
[423276503,1780012245000,-223.154,0.0001648,2]
[423276504,1780012245000,-456.076744,0.000165,10]
[423276505,1780012245000,-7316.04795307,0.00017,2]
[423276506,1780012245000,-113085.25332941,0.00017,2]
[423276508,1780012245000,-151.0,0.00017,2]
[423276512,1780012245000,-2166.64993195,0.000176,2]
[423276507,1780012245000,-200.0,0.00017,2]
[423276513,1780012245000,-156.6127288,0.00017684,2]
[423276511,1780012245000,-2000.0,0.00017521,7]
[423276461,1780012245000,-484.9,0.00016438,2]
[423276510,1780012245000,-254.9624677,0.000175,2]
[423276515,1780012245000,-492.0,0.0001774,2]
[423276514,1780012245000,-1000.0,0.0001774,2]
[423276516,1780012245000,-126000.0,0.000178,2]
[423276518,1780012245000,-1817.826,0.000179,2]
[423276517,1780012245000,-5524.61556573,0.000178,2]
[423276520,1780012245000,-1817.82,0.000179,2]
[423276519,1780012245000,-1817.826,0.000179,2]
[423276521,1780012245000,-6635.3743751,0.00018,2]
[423276523,1780012245000,-1684.64717393,0.00018,2]
[423276522,1780012245000,-160616.23412517,0.00018,2]
[423276494,1780012245000,-200.0,0.00016438,3]
[423276493,1780012245000,-152.11847,0.00016438,2]
[423276509,1780012245000,-17044.4637812,0.0001718,2]
[423276492,1780012245000,-152.11846,0.00016438,2]
[423276463,1780012245000,-484.9,0.00016438,2]
[423276491,1780012245000,-152.11846,0.00016438,2]
[423276462,1780012245000,-484.9,0.00016438,2]